{"text_format":"3","workbook":"xlsx","n_sheets":2,"sheets":["Fonds","Univers d'investissement "],"not_rendered":{"macros":1,"defined_names":7},"read":"whole","date_system":"1900"}

{"sheet":"Fonds","index":0,"n_rows":22,"n_cols":15,"rows_kept":22}
[{"$f":"NOW()","v":"2015-02-05T13:55:03.110"}]
["TICKER","Nom Entreprise","PAM","Cours",null,"Cloture J - 1","∆ %","Qté","Evolution","% Since 52L","Ligne totale","% FDS","P/E","1 Year TP","Devise "]
["AAPL","Apple Inc.",119.56,119.56,119.56,118.65,{"$f":"D3/F3-1","v":{"v":0.007669616519174083,"d":"0.77%"}},52,{"v":47.0157,"d":"4701.57%"},47.0157,{"$f":"H3*D3","v":6217.12},{"v":16.07,"d":"1607%"},129.88,"NasdaqNM","NasdaqNM"]
["NOVC.DE","NOVO NORDISK -B-",38.185,38.365,38.365,38.185,{"$f":"D4/F4-1","v":{"v":4.713892889878224E-3,"d":"0.47%"}},60,{"v":9.08,"d":"908.00%"},9.08,{"$f":"H4*D4","v":2301.9},{"v":24.91,"d":"2491%"},"N/A","XETRA","XETRA"]
["ZLDPF","ZEALAND PHARMA A/",12.89,12.89,12.89,12.89,{"v":0,"d":"0.00%"},70,{"v":0.39,"d":"39.00%"},0.39,902.3000000000001,"N/A","N/A","Other OTC","Other OTC"]
["FGR.PA","EIFFAGE",43.735,44.855,44.855,43.735,{"v":0.025608780153195232,"d":"2.56%"},50,{"v":8.195,"d":"819.50%"},8.345,2242.75,{"v":14.65,"d":"1465%"},"N/A","Paris","Paris"]
["MAU.PA","MAUREL & PROM.",7.937,8.141,8.141,7.937,{"v":0.02570240645080002,"d":"2.57%"},50,{"v":1.361,"d":"136.10%"},1.365,407.05,{"v":8.62,"d":"862%"},"N/A","Paris","Paris"]
["ERYP.PA","ERYTECH PHARMA",26.75,26.64,26.64,26.75,{"v":-0.004112149532710219,"d":"-0.41%"},150,{"v":14.54,"d":"1454.00%"},14.54,3996,"N/A","N/A","Paris","Paris"]
["EDL.PA","EURO DISNEY RGPT",1.24,1.24,1.24,1.24,{"v":0,"d":"0.00%"},50,{"v":0.2468,"d":"24.68%"},0.2468,62,"N/A","N/A","Paris","Paris"]
["BNP.PA","BNP PARIBAS-A-",46.78,46.85,46.85,48.805,{"v":-0.04005737117098651,"d":"-4.01%"},50,{"v":3.405,"d":"340.50%"},3.685,2342.5,"N/A","N/A","Paris","Paris"]
["FEM.PA","AUFEMININ",29,28.85,28.85,29,{"v":-0.005172413793103403,"d":"-0.52%"},50,{"v":6.77,"d":"677.00%"},6.72,1442.5,{"v":21.48,"d":"2148%"},"N/A","Paris","Paris"]
["GTO.PA","GEMALTO",66.16,65.07,65.07,66.16,{"v":-0.016475211608222518,"d":"-1.65%"},25,{"v":11.95,"d":"1195.00%"},12.37,1626.7499999999998,"N/A","N/A","Paris","Paris"]
["FBEL.PA","FROMAGERIE BEL",297,300,300,297,{"v":0.010101010101010166,"d":"1.01%"},15,{"v":34.8,"d":"3480.00%"},34.8,4500,{"v":24.73,"d":"2473%"},"N/A","Paris","Paris"]
["IPH.PA","INNATE PHARMA N.-",9.61,9.59,9.59,9.61,{"v":-0.002081165452653466,"d":"-0.21%"},20,{"v":3.88,"d":"388.00%"},3.88,191.8,"N/A","N/A","Paris","Paris"]
["LLY","Eli Lilly and Com",70.22,70.22,70.22,70.89,{"v":-0.00945126251939632,"d":"-0.95%"},38,{"v":17.93,"d":"1793.00%"},17.93,2668.36,{"v":31.86,"d":"3186%"},74.11,"NYSE","NYSE"]
["SLB.PA","SCHLUMBERGER",74.45,74.67,74.67,74.45,{"v":2.9550033579583967E-3,"d":"0.30%"},50,{"v":12.16,"d":"1216.00%"},12.6,3733.5,{"v":17.93,"d":"1793%"},"N/A","Paris","Paris"]
[null,119.56,null,0,"N/A","N/A",null,null,"N/A","N/A",null,"N/A","N/A","N/A","N/A"]
[]
[{"$nulls":9},"Encours ",{"$f":"SUM(K3:K16)","v":32634.53}]
[{"$nulls":9},"Cash",0]
[{"$nulls":9},"Valeur initial ",30210]
[119.56,{"$nulls":8},"Perf",{"$f":"K19/K21-1","v":{"v":0.08025587553790126,"d":"8.03%"}}]

{"sheet":"Univers d'investissement ","index":1,"n_rows":349,"n_cols":4,"rows_kept":349}
["TICKER","NOM DE L'ENTREPRISE"]
["AB.PA","AB Science"]
["ACAN.PA","Acanthe Dveloppement",null," and your request included 347ticker symbols.  Please adjust your request to include 200 or less."]
["AC.PA","Accor SA"]
["EOS.PA","Acteos"]
["ATI.PA","Actia group"]
["ALP.PA","ADL Partner"]
["ADOC.PA","Adocia"]
["ADP.PA","Aéroports de Paris"]
["IML.PA","Affine R E"]
["AFO.PA","Afone"]
["AF.PA","Air France-KLM"]
["AI.PA","Air Liquide SA"]
["AIR.PA","AIRBUS GROUP"]
["AKA.PA","Akka Technologies"]
["ABIO.PA","ALBIOMA"]
["ALU.PA","Alcatel-Lucent"]
["ALO.PA","Alstom SA"]
["LTA.PA","ALTAMIR"]
["ATE.PA","Alten"]
["ALT.PA","Altran Technologies"]
["APAM.PA","APERAM REG."]
["APR.PA","April"]
["MT.PA","ARCELORMITTAL REG"]
["JXR.PA","Archos"]
["AREVA.PA","Areva"]
["ARG.PA","Argan"]
["AKE.PA","Arkema"]
["PRC.PA","Artprice.com"]
["ASK.PA","Ask SA"]
["ASY.PA","Assystem SA"]
["ASP.PA","AST Groupe"]
["ATA.PA","Atari"]
["ATEME.PA","Ateme SA"]
["ATO.PA","Atos"]
["AUB.PA","Aubay"]
["ADI.PA","Audika Groupe"]
["FEM.PA","Aufeminin"]
["AUGR.PA","Augros Cosmetics Packaging SA"]
["AURE.PA","Aurea"]
["AURS.PA","Aures Technologies"]
["OSI.PA","Ausy"]
["AVQ.PA","Avanquest Software"]
["AVF.PA","Avenir Finance"]
["AVT.PA","Avenir Tlcom"]
["AWOX.PA","Awox SA"]
["CS.PA","AXA SA"]
["AXW.PA","Axway Software"]
["BUI.PA","Barbara Bui"]
["BLC.PA","Bastide Le Confort Mdical"]
["BVD.PA","Belvedere SA"]
["BEN.PA","Beneteau SA"]
["BB.PA","Bic"]
["BIG.PA","Bigben Interactive"]
["BIM.PA","BioMerieux SA"]
["BLUE.PA","BLUE SOLUTIONS SA"]
["BNP.PA","BNP Paribas"]
["BOI.PA","Boiron"]
["BOL.PA","Bollore SA"]
["BON.PA","Bonduelle"]
["GBB.PA","Bourbon SA"]
["BSD.PA","Bourse Direct"]
["EN.PA","Bouygues"]
["BVI.PA","Bureau Veritas SA"]
["BND.PA","Business & Decision"]
["CAFO.PA","Cafom"]
["CAPLI.PA","Capelli"]
["CAP.PA","Capgemini"]
["CA.PA","Carrefour"]
["CO.PA","Casino Guichard-Perrachon"]
["CAS.PA","Cast"]
["CATG.PA","CATANA GROUP"]
["CTRG.PA","Catering International Services"]
["CDA.PA","CDA (Compagnie des Alpes)"]
["CGM.PA","Cegedim"]
["CGR.PA","Cegereal"]
["CGD.PA","Cegid Group"]
["CGG.PA","CGG"]
["CRI.PA","Chargeurs SA"]
["CIB.PA","Cibox Inter@ctive"]
["CNP.PA","CNP Assurances"]
["COFA.PA","Coface SA"]
["COH.PA","Coheris"]
["SGO.PA","Compagnie de Saint-Gobain"]
["COUR.PA","Courtois"]
["ACA.PA","Crdit Agricole"]
["SX.PA","CS (Communication & Systmes)"]
["DLT.PA","Dalet"]
["BN.PA","Danone"]
["DSY.PA","Dassault Systemes SA"]
["DBV.PA","DBV Technologies SA"]
["DLTA.PA","Delta Plus Group"]
["DBG.PA","Derichebourg SA"]
["DVT.PA","Devoteam SA"]
["DEXB.PA","Dexia"]
["DGM.PA","DMS (Diagnostic Medical Systems)"]
["DNX.PA","Dnxcorp"]
["DPAM.PA","Docks Ptroles d Ambs"]
["ECASA.PA","Eca"]
["EDEN.PA","Edenred SA"]
["GID.PA","Egide"]
["FGR.PA","Eiffage"]
["EKI.PA","Ekinops SA"]
["EDF.PA","Electricit de France S.A."]
["EEM.PA","Electricit et Eaux de Madagascar"]
["ELIOR.PA","Elior Participations SCA"]
["DBT.PA","Encres Dubuit"]
["EOSI.PA","EOS Imaging SA"]
["ERA.PA","Eramet"]
["ERYP.PA","Erytech Pharma"]
["ESI.PA","Esi Group"]
["EI.PA","Essilor International SA"]
["ES.PA","Esso"]
["ELE.PA","Euler Hermes Group SA"]
["RF.PA","Eurazeo"]
["EDL.PA","Euro Disney"]
["EUR.PA","Euro Ressources SA"]
["ERF.PA","Eurofins Scientific SE"]
["EMG.PA","Euromedis Groupe"]
["ENX.PA","Euronext"]
["ECP.PA","EuropaCorp"]
["ETL.PA","Eutelsat Communications"]
["EXE.PA","Exel Industries SA"]
["LEY.PA","Faiveley Transport SA"]
["EO.PA","Faurecia SA"]
["FALG.PA","Fermentalg SA"]
["FLE.PA","Fleury Michon"]
["FLO.PA","Flo (Groupe)"]
["FDPA.PA","FONCIERE DE PARIS"]
["FDR.PA","Fonciere des Regions"]
["FPN.PA","Fonciere Paris Nord"]
["GFT.PA","Gameloft SE"]
["BI.PA","Gascogne"]
["GTT.PA","Gaztransport et technigaz SA"]
["GSZ.PA","GDF Suez"]
["GEA.PA","GEA (Grenobloise d'Electronique et d'Automatismes)"]
["GFC.PA","Gecina"]
["GTO.PA","Gemalto"]
["GENX.PA","Generix Group"]
["GNFT.PA","GENFIT"]
["GV.PA","Genomic Vision SA"]
["GTCL.PA","Genticel SA"]
["GFI.PA","GFI Informatique"]
["GLO.PA","GL Events"]
["PERR.PA","Grard Perrier Industrie"]
["CEN.PA","Groupe Crit"]
["GET.PA","Groupe Eurotunnel S.E"]
["FNAC.PA","Groupe FNAC"]
["GOE.PA","Groupe Gorge SA"]
["OPN.PA","Groupe Open"]
["PARP.PA","Groupe Partouche"]
["GPE.PA","Groupe Pizzorno Environnement"]
["SK.PA","Groupe Seb"]
["GBT.PA","Guerbet"]
["GUI.PA","Guillemot Corp SA"]
["PIG.PA","Haulotte Group"]
["RMS.PA","Hermès International"]
["HF.PA","HF Co"]
["HCO.PA","High Co"]
["HIM.PA","Hi-Media"]
["ALHIO.PA","HIOLLE INDUSTRIES"]
["HBW.PA","Hubwoo"]
["ICAD.PA","Icade SA"]
["IDL.PA","ID Logistics"]
["IGE.PA","IGE Plus XAO SA"]
["ILD.PA","Iliad"]
["NK.PA","Imerys"]
["IMPL.PA","IMPLANET"]
["INF.PA","Infotel"]
["ING.PA","Ingenico Group SA"]
["IPH.PA","Innate Pharma SA"]
["INN.PA","Innelec Multimedia SA"]
["INSD.PA","Inside Secure"]
["STAL.PA","Installux"]
["ITP.PA","Interparfums"]
["IPN.PA","Ipsen SA"]
["IPS.PA","Ipsos"]
["ITL.PA","IT Link"]
["ITE.PA","Itesoft"]
["ITS.PA","ITS Group"]
["JCQ.PA","JACQUET METAL"]
["DEC.PA","JC Decaux SA"]
["KER.PA","Kering SA"]
["KEY.PA","Keyrus"]
["LI.PA","Klpierre"]
["KORI.PA","Korian-Medica SA"]
["LACR.PA","Lacroix SA"]
["LG.PA","Lafarge SA"]
["LAF.PA","Lafuma"]
["MMB.PA","Lagardere Groupe SCA"]
["LAN.PA","Lanson-BCC"]
["LAT.PA","Latecoere"]
["LPE.PA","Laurent-Perrier"]
["LDL.PA","Ldlc.com"]
["BELI.PA","Le Belier"]
["LNA.PA","Le Noble Age"]
["LSS.PA","Lectra"]
["LR.PA","Legrand SA"]
["LNC.PA","Les Nouveaux Constructeurs"]
["LEX.PA","Lexibook Linguistic Electronic System SA"]
["LIN.PA","Linedata Services"]
["FII.PA","Lisi"]
["OR.PA","L'Oreal SA"]
["MC.PA","LVMH Moet Hennessy Louis Vuitton SA"]
["MMT.PA","M6 Mtropole Tlvision"]
["MFC.PA","Maisons France Confort"]
["MTU.PA","Manitou BF"]
["MAN.PA","Manutan International"]
["MKEA.PA","Mauna Kea Technologies"]
["MAU.PA","Maurel & Prom"]
["MCPHY.PA","McPhy Energy SA"]
["MCLC.PA","Mecelec SA"]
["MED.PA","Medasys"]
["ROSA.PA","MedTech SA"]
["MEMS.PA","Memscap"]
["MERY.PA","Mercialys"]
["MRN.PA","Mersen"]
["METEX.PA","Metabolic Explorer"]
["MGIC.PA","MGI Coutier"]
["ML.PA","Michelin"]
["MUN.PA","Micropole"]
["MND.PA","Montagne et Neige Developpement SACA"]
["MFG.PA","Montaigne Fashion Group"]
["MON.PA","Montupet"]
["MPI.PA","MPI"]
["MRB.PA","Mr Bricolage"]
["NANO.PA","Nanobiotix"]
["KN.PA","Natixis"]
["NRX.PA","Naturex SA"]
["NEO.PA","Neopost"]
["NTG.PA","Netgem"]
["NRO.PA","Neurones"]
["NEX.PA","Nexans"]
["NXI.PA","Nexity"]
["NXTV.PA","NextRadioTV"]
["COX.PA","Nicox"]
["GND.PA","Norbert Dentressangle"]
["NRG.PA","Nrj Group"]
["NUM.PA","Numericable-SFR SA"]
["SBT.PA","Oeneo"]
["OLG.PA","Olympique Lyonnais Groupe"]
["ONXEO.PA","ONXEO"]
["ORA.PA","Orange"]
["ORAP.PA","Orapi"]
["ORP.PA","Orpea"]
["PAR.PA","Paref"]
["PARRO.PA","Parrot"]
["RI.PA","Pernod Ricard NV"]
["UG.PA","Peugeot"]
["PHA.PA","Pharmagest Interactive"]
["VAC.PA","Pierre & Vacances"]
["POM.PA","Plastic Omnium"]
["PVL.PA","Plastiques du Val-de-Loire"]
["PREC.PA","Precia"]
["PCA.PA","Produits Chimiques Auxiliaires Synthese SA"]
["PROL.PA","Prologue"]
["PSB.PA","PSB Industries"]
["PUS.PA","Public Systeme Hopscotch"]
["PUB.PA","Publicis Groupe SA"]
["QUA.PA","Quantel"]
["RX.PA","Recylex SA"]
["RNO.PA","Renault SA"]
["BIL.PA","RENTABILIWEB GROUP"]
["RXL.PA","Rexel SA"]
["RIB.PA","Riber"]
["RCO.PA","Rmy Cointreau"]
["RUI.PA","Rubis"]
["SAF.PA","Safran SA"]
["SAFT.PA","Saft Groupe"]
["SAN.PA","Sanofi"]
["DIM.PA","Sartorius Stedim Biotech SA"]
["SCHP.PA","Sch Environnement"]
["SU.PA","Schneider Electric SE"]
["SCR.PA","SCOR SE"]
["SEQ.PA","Sequana S.A."]
["SEFER.PA","SergeFerrari Group SA"]
["SESG.PA","SES SA"]
["GIRO.PA","Signaux Girod"]
["SIPH.PA","SIPH (Internationale de Plantations d'Hévéas)"]
["CBSM.PA","Société Centrale des Bois et Scieries de la Manche"]
["AN.PA","Societe d'Edition de Canal Plus"]
["SII.PA","Societe Pour L'Informatique Industrielle"]
["GLE.PA","Socit Gnrale"]
["SMTPC.PA","Socit Marseillaise du Tunnel Prado-Carnage"]
["SW.PA","Sodexo"]
["SEC.PA","Soditech Ingnierie"]
["SFT.PA","Soft Computing"]
["SOG.PA","Sogeclair"]
["SOI.PA","Soitec"]
["LOCAL.PA","SOLOCAL GROUP"]
["LCO.PA","SoluCom"]
["SOLB.PA","SOLVAY"]
["SOP.PA","Sopra Steria Group SA"]
["SPI.PA","Spir Communication"]
["SQI.PA","Sqli SA"]
["DPT.PA","St Dupont"]
["GENP.PA","Stallergnes SA"]
["STF.PA","Stef"]
["STNT.PA","Stentys"]
["STM.PA","STMicroelectronics NV"]
["SESL.PA","Store Electronic Systems"]
["SEV.PA","Suez Environnement Co SA"]
["SSI.PA","Super Sonic Imagine"]
["SWP.PA","Sword Group"]
["SDG.PA","Synergie"]
["TKTT.PA","Tarkett SA"]
["TCH.PA","Technicolor"]
["TEC.PA","Technip"]
["RCF.PA","Teleperformance"]
["TFI.PA","Television Francaise 1 SA"]
["TER.PA","Terres"]
["TES.PA","Tessi"]
["HO.PA","Thales"]
["TEO.PA","Theolia"]
["THEP.PA","Thermador Groupe"]
["TIPI.PA","Tipiak"]
["TVLY.PA","Tivoly"]
["TONN.PA","Tonna Electronique"]
["TFF.PA","Tonnellerie Franois Frres"]
["FP.PA","Total SA"]
["TOUP.PA","Touax"]
["TOU.PA","Toupargel Groupe"]
["TNG.PA","Transgene"]
["TRI.PA","Trigano"]
["TXCL.PA","TxCell SA"]
["UDIS.PA","U10 SA"]
["UBI.PA","Ubisoft Entertainment"]
["UL.PA","Unibail-Rodamco SE"]
["UFF.PA","Union Financire de France Banque"]
["FPG.PA","Union Technologies Informatique Group"]
["FR.PA","Valeo SA"]
["VK.PA","Vallourec SA"]
["VLA.PA","VALNEVA"]
["LTE.PA","Valtech"]
["VIE.PA","Veolia Environnement SA"]
["VET.PA","Vet Affaires"]
["VCT.PA","Vicat"]
["RIN.PA","Vilmorin & Cie"]
["DG.PA","Vinci"]
["VIRP.PA","Virbac"]
["VIV.PA","Vivendi SA"]
["VMMA.PA","VM Materiaux SA"]
["VRAP.PA","Vranken Pommery Monopole"]
["VETO.PA","Vtoquinol"]
["MF.PA","Wendel Investissement"]
["XIL.PA","Xilam Animation"]
["MAGIS.PA","Ymagis"]
["ZC.PA","Zodiac Aerospace"]
["ZIF.PA","Zueblin Immobiliere France"]